fUST/lending_fUST_20240430
["ID","MTS","AMOUNT","RATE_DAILY","PERIOD"]
[324940941,1714455039424,-500.0,0.00019178,2]
[324940942,1714455039434,-500.0,0.00019178,2]
[324940943,1714455039443,-500.0,0.00019178,2]
[324940944,1714455039452,-610.27897714,0.00019178,2]
[324940945,1714455039462,-199.82991119,0.00019178,2]
[324940946,1714455039471,-179.02051901,0.00019178,2]
[324940947,1714455039481,-380.39020179,0.00019178,2]
[324940948,1714455039490,-572.7268308,0.00019178,2]
[324940949,1714455039499,-796.533936,0.00019178,2]
[324940950,1714455039508,-796.533936,0.00019178,2]
[324940951,1714455039518,-151.0,0.00019178,2]
[324940952,1714455039527,-151.0,0.00019178,2]
[324940953,1714455039537,-1213.823465,0.00019178,2]
[324940954,1714455039549,-151.0,0.00019178,2]
[324940955,1714455039560,-1213.823465,0.00019178,2]
[324940956,1714455039570,-151.0,0.00019178,2]
[324940957,1714455039579,-3502.198289,0.00019178,2]
[324940958,1714455039589,-3502.198289,0.00019178,2]
[324940959,1714455039599,-219.071959,0.00019178,2]
[324940960,1714455039608,-219.071959,0.00019178,2]
[324940961,1714455039617,-208.059961,0.00019178,2]
[324940962,1714455039626,-160.530142,0.00019178,2]
[324940963,1714455039636,-3693.55667999,0.00019188,2]
[324940964,1714455039646,-188.569054,0.000192,2]
[324940965,1714455039655,-188.569054,0.000192,2]
[324940967,1714455039664,-151.260243,0.000192,2]
[324940968,1714455039673,-151.0,0.000192,2]
[324940970,1714455039683,-151.0,0.000192,2]
[324940971,1714455039692,-185.889849,0.000192,2]
[324940972,1714455039702,-185.889849,0.000192,2]
[324940973,1714455039711,-151.0,0.000192,2]
[324940974,1714455039721,-182.679602,0.000192,2]
[324940975,1714455039731,-151.0,0.000192,2]
[324940976,1714455039740,-151.0,0.000192,2]
[324940977,1714455039749,-151.0,0.000192,2]
[324940978,1714455039758,-1074.269972,0.000192,2]
[324940979,1714455039767,-151.0,0.000192,2]
[324940980,1714455039777,-1074.269972,0.000192,2]
[324940981,1714455039786,-190.286616,0.000192,2]
[324940982,1714455039795,-190.286616,0.000192,2]
[324940983,1714455039804,-1092.078576,0.000192,2]
[324940984,1714455039814,-1092.078576,0.000192,2]
[324940985,1714455039823,-153.24312,0.000192,2]
[324940986,1714455039832,-368.215691,0.000192,2]
[324940988,1714455039842,-368.215691,0.000192,2]
[324940990,1714455039851,-375.047859,0.000192,2]
[324940991,1714455039860,-151.0,0.000192,2]
[324940992,1714455039869,-375.047859,0.000192,2]
[324940994,1714455039878,-151.0,0.000192,2]
[324940995,1714455039887,-3886.673384,0.000192,2]
[324940996,1714455039896,-3886.673384,0.000192,2]
[324940997,1714455039905,-151.0,0.000192,2]
[324940998,1714455039914,-1633.87335905,0.00019222,2]
[324940999,1714455039923,-103714.77430349,0.000193,2]
[324941001,1714455039932,-151.0,0.000193,2]
[324941003,1714455039942,-151.0,0.000193,2]
[324941004,1714455039952,-201.319096,0.000193,2]
[324941005,1714455039961,-201.319096,0.000193,2]
[324941006,1714455039970,-152.611578,0.000193,2]
[324941007,1714455039979,-201.319096,0.000193,2]
[324941008,1714455039988,-201.319096,0.000193,2]
[324941009,1714455039997,-151.0,0.000193,2]
[324941010,1714455040006,-151.0,0.000193,2]
[324941011,1714455040016,-151.0,0.000193,2]
[324941012,1714455040025,-151.0,0.000193,2]
[324941013,1714455040035,-288.852604,0.000193,2]
[324941014,1714455040045,-288.852604,0.000193,2]
[324941016,1714455040055,-288.852604,0.000193,2]
[324941017,1714455040064,-288.852604,0.000193,2]
[324941019,1714455040073,-300.325515,0.000193,2]
[324941021,1714455040082,-300.325515,0.000193,2]
[324941023,1714455040091,-300.325515,0.000193,2]
[324941025,1714455040102,-300.325515,0.000193,2]
[324941027,1714455040111,-173.144898,0.000193,2]
[324941029,1714455040120,-151.61096,0.000193,2]
[324941031,1714455040130,-151.0,0.000193,2]
[324941033,1714455040139,-151.0,0.000193,2]
[324941035,1714455040148,-151.0,0.000193,2]
[324941037,1714455040158,-188.569054,0.000193,2]
[324941039,1714455040167,-188.569054,0.000193,2]
[324941042,1714455040176,-188.569054,0.000193,2]
[324941044,1714455040186,-151.0,0.000193,2]
[324941046,1714455040195,-188.569054,0.000193,2]
[324941048,1714455040203,-151.0,0.000193,2]
[324941049,1714455040213,-188.569054,0.000193,2]
[324941050,1714455040221,-151.0,0.000193,2]
[324941051,1714455040230,-188.569054,0.000193,2]
[324941052,1714455040239,-151.0,0.000193,2]
[324941053,1714455040248,-151.0,0.000193,2]
[324941054,1714455040257,-151.0,0.000193,2]
[324941055,1714455040267,-194.898874,0.000193,2]
[324941056,1714455040276,-796.533936,0.000193,2]
[324941057,1714455040285,-796.533936,0.000193,2]
[324941058,1714455040295,-796.533936,0.000193,2]
[324941059,1714455040305,-796.533936,0.000193,2]
[324941060,1714455040314,-796.533936,0.000193,2]
[324941061,1714455040323,-796.533936,0.000193,2]
[324941065,1714455040441,-185.889849,0.000193,2]
[324941067,1714455040450,-185.889849,0.000193,2]
[324941069,1714455040460,-185.889849,0.000193,2]
[324941071,1714455040469,-185.889849,0.000193,2]
[324941073,1714455040478,-185.889849,0.000193,2]
[324941075,1714455040488,-185.889849,0.000193,2]
[324941077,1714455040498,-151.0,0.000193,2]
[324941079,1714455040507,-151.0,0.000193,2]
[324941081,1714455040516,-244.082137,0.000193,2]
[324941083,1714455040525,-151.0,0.000193,2]
[324941085,1714455040534,-151.0,0.000193,2]
[324941087,1714455040543,-151.0,0.000193,2]
[324941089,1714455040558,-1213.823465,0.000193,2]
[324941091,1714455040567,-1213.823465,0.000193,2]
[324941093,1714455040576,-1213.823465,0.000193,2]
[324941095,1714455040586,-151.0,0.000193,2]
[324941097,1714455040596,-151.0,0.000193,2]
[324941099,1714455040606,-151.0,0.000193,2]
[324941101,1714455040615,-1213.823465,0.000193,2]
[324941104,1714455040625,-1213.823465,0.000193,2]
[324941106,1714455040635,-1213.823465,0.000193,2]
[324941107,1714455040645,-151.0,0.000193,2]
[324941109,1714455040654,-275.363037,0.000193,2]
[324941111,1714455040663,-151.0,0.000193,2]
[324941113,1714455040673,-151.0,0.000193,2]
[324941115,1714455040682,-151.0,0.000193,2]
[324941117,1714455040691,-151.0,0.000193,2]
[324941119,1714455040700,-151.0,0.000193,2]
[324941121,1714455040709,-151.0,0.000193,2]
[324941123,1714455040718,-151.0,0.000193,2]
[324941126,1714455040728,-151.0,0.000193,2]
[324941128,1714455040738,-162.469575,0.000193,2]
[324941129,1714455040747,-151.0,0.000193,2]
[324941132,1714455040756,-1074.269972,0.000193,2]
[324941134,1714455040765,-151.0,0.000193,2]
[324941136,1714455040775,-1074.269972,0.000193,2]
[324941138,1714455040783,-151.0,0.000193,2]
[324941140,1714455040792,-1074.269972,0.000193,2]
[324941142,1714455040804,-151.0,0.000193,2]
[324941144,1714455040813,-1074.269972,0.000193,2]
[324941146,1714455040822,-151.0,0.000193,2]
[324941148,1714455040831,-182.833586,0.000193,2]
[324941150,1714455040840,-1074.269972,0.000193,2]
[324941152,1714455040849,-1074.269972,0.000193,2]
[324941153,1714455040858,-1074.269972,0.000193,2]
[324941155,1714455040867,-1074.269972,0.000193,2]
[324941157,1714455040877,-190.286616,0.000193,2]
[324941159,1714455040886,-190.286616,0.000193,2]
[324941161,1714455040895,-190.286616,0.000193,2]
[324941163,1714455040904,-190.286616,0.000193,2]
[324941166,1714455040915,-190.286616,0.000193,2]
[324941168,1714455040924,-190.286616,0.000193,2]
[324941170,1714455040934,-190.286616,0.000193,2]
[324941172,1714455040943,-190.286616,0.000193,2]
[324941174,1714455040952,-1092.078576,0.000193,2]
[324941176,1714455040962,-1092.078576,0.000193,2]
[324941178,1714455040971,-1092.078576,0.000193,2]
[324941180,1714455040980,-1092.078576,0.000193,2]
[324941182,1714455040990,-1092.078576,0.000193,2]
[324941184,1714455040999,-1092.078576,0.000193,2]
[324941186,1714455041008,-1092.078576,0.000193,2]
[324941188,1714455041018,-1092.078576,0.000193,2]
[324941190,1714455041028,-368.215691,0.000193,2]
[324941191,1714455041037,-368.215691,0.000193,2]
[324941192,1714455041047,-368.215691,0.000193,2]
[324941193,1714455041056,-368.215691,0.000193,2]
[324941194,1714455041065,-368.215691,0.000193,2]
[324941195,1714455041074,-368.215691,0.000193,2]
[324941196,1714455041084,-368.215691,0.000193,2]
[324941197,1714455041093,-368.215691,0.000193,2]
[324941198,1714455041103,-375.047859,0.000193,2]
[324941199,1714455041112,-375.047859,0.000193,2]
[324941200,1714455041121,-375.047859,0.000193,2]
[324941201,1714455041130,-375.047859,0.000193,2]
[324941202,1714455041139,-151.0,0.000193,2]
[324941203,1714455041148,-151.386942,0.000193,2]
[324941204,1714455041157,-375.047859,0.000193,2]
[324941205,1714455041168,-375.047859,0.000193,2]
[324941206,1714455041177,-375.047859,0.000193,2]
[324941207,1714455041186,-151.0,0.000193,2]
[324941208,1714455041195,-151.697529,0.000193,2]
[324941209,1714455041204,-375.047859,0.000193,2]
[324941210,1714455041213,-3886.673384,0.000193,2]
[324941211,1714455041222,-3886.673384,0.000193,2]
[324941212,1714455041231,-3886.673384,0.000193,2]
[324941213,1714455041241,-3886.673384,0.000193,2]
[324941215,1714455041250,-3886.673384,0.000193,2]
[324941217,1714455041259,-3886.673384,0.000193,2]
[324941219,1714455041267,-3886.673384,0.000193,2]
[324941221,1714455041277,-3886.673384,0.000193,2]
[324941223,1714455041286,-151.0,0.000193,2]
[324941225,1714455041296,-151.0,0.000193,2]
[324941226,1714455041304,-151.0,0.000193,2]
[324941228,1714455041314,-160.563942,0.000193,2]
[324941230,1714455041323,-3502.198289,0.000193,2]
[324941232,1714455041332,-3502.198289,0.000193,2]
[324941233,1714455041341,-3502.198289,0.000193,2]
[324941234,1714455041350,-3502.198289,0.000193,2]
[324941235,1714455041359,-3502.198289,0.000193,2]
[324941236,1714455041369,-3502.198289,0.000193,2]
[324941237,1714455041378,-3502.198289,0.000193,2]
[324941238,1714455041387,-3502.198289,0.000193,2]
[324941239,1714455041396,-3502.198289,0.000193,2]
[324941240,1714455041405,-3502.198289,0.000193,2]
[324941241,1714455041414,-219.071959,0.000193,2]
[324941242,1714455041423,-219.071959,0.000193,2]
[324941243,1714455041432,-219.071959,0.000193,2]
[324941244,1714455041442,-219.071959,0.000193,2]
[324941245,1714455041452,-219.071959,0.000193,2]
[324941246,1714455041461,-219.071959,0.000193,2]
[324941247,1714455041470,-219.071959,0.000193,2]
[324941248,1714455041480,-219.071959,0.000193,2]
[324941249,1714455041489,-587.0,0.00019322,2]
[324941250,1714455041499,-39732.31924925,0.0002,2]
[324941251,1714455041508,-154.79876161,0.0002,2]
[324941252,1714455041517,-329.99389325,0.0002,2]
[324941253,1714455041526,-400.0,0.0002,2]
[324941254,1714455041538,-155.12161224,0.0002,2]
[324941255,1714455041548,-155.37423451,0.0002,2]
[324941256,1714455041563,-174.59950827,0.0002,2]
[324941257,1714455041572,-151.0,0.0002,2]
[324941258,1714455041582,-3971.43528255,0.0002,10]
[324941259,1714455041591,-10596.07047515,0.0002,2]
[324941260,1714455041601,-154.295428,0.0002,2]
[324941261,1714455041611,-201.319096,0.0002,2]
[324941262,1714455041620,-201.319096,0.0002,2]
[324941263,1714455041629,-201.319096,0.0002,2]
[324941264,1714455041641,-201.319096,0.0002,2]
[324941265,1714455041651,-151.0,0.0002,2]
[324941266,1714455041660,-151.0,0.0002,2]
[324941267,1714455041670,-151.0,0.0002,2]
[324941268,1714455041680,-151.0,0.0002,2]
[324941269,1714455041689,-151.0,0.0002,2]
[324941270,1714455041698,-151.0,0.0002,2]
[324941271,1714455041708,-4920.77060619,0.0002,2]
[324941272,1714455041717,-288.852604,0.0002,2]
[324941273,1714455041727,-288.852604,0.0002,2]
[324941274,1714455041736,-288.852604,0.0002,2]
[324941275,1714455041746,-483.71860151,0.0002,4]
[324941276,1714455041755,-288.852604,0.0002,2]
[324941277,1714455041765,-288.852604,0.0002,2]
[324941278,1714455041774,-288.852604,0.0002,2]
[324941279,1714455041783,-288.852604,0.0002,2]
[324941280,1714455041792,-288.852604,0.0002,2]
[324941281,1714455041802,-300.325515,0.0002,2]
[324941282,1714455041811,-300.325515,0.0002,2]
[324941283,1714455041820,-300.325515,0.0002,2]
[324941284,1714455041829,-300.325515,0.0002,2]
[324941285,1714455041839,-300.325515,0.0002,2]
[324941286,1714455041848,-300.325515,0.0002,2]
[324941287,1714455041858,-300.325515,0.0002,2]
[324941288,1714455041866,-300.325515,0.0002,2]
[324941289,1714455041876,-279.43689213,0.0002,2]
[324941290,1714455041885,-156.018355,0.0002,2]
[324941291,1714455041894,-151.0,0.0002,2]
[324941292,1714455041903,-151.0,0.0002,2]
[324941293,1714455041912,-151.0,0.0002,2]
[324941294,1714455041922,-188.569054,0.0002,2]
[324941295,1714455041931,-151.0,0.0002,2]
[324941296,1714455041940,-188.569054,0.0002,2]
[324941297,1714455041949,-151.0,0.0002,2]
[324941298,1714455041958,-188.569054,0.0002,2]
[324941299,1714455041967,-188.569054,0.0002,2]
[324941300,1714455041975,-151.0,0.0002,2]
[324941301,1714455041985,-188.569054,0.0002,2]
[324941302,1714455041994,-188.569054,0.0002,2]
[324941303,1714455042003,-151.0,0.0002,2]
[324941304,1714455042013,-188.569054,0.0002,2]
[324941305,1714455042022,-188.569054,0.0002,2]
[324941306,1714455042031,-151.0,0.0002,2]
[324941307,1714455042041,-188.569054,0.0002,2]
[324941308,1714455042052,-188.569054,0.0002,2]
[324941309,1714455042068,-151.0,0.0002,2]
[324941310,1714455042081,-188.569054,0.0002,2]
[324941311,1714455042090,-151.0,0.0002,2]
[324941312,1714455042100,-151.0,0.0002,2]
[324941313,1714455042110,-188.569064,0.0002,2]
[324941314,1714455042119,-182.712194,0.0002,2]
[324941315,1714455042128,-151.0,0.0002,2]
[324941316,1714455042138,-151.0,0.0002,2]
[324941317,1714455042147,-151.0,0.0002,2]
[324941318,1714455042157,-151.0,0.0002,2]
[324941319,1714455042166,-151.0,0.0002,2]
[324941320,1714455042176,-151.0,0.0002,2]
[324941321,1714455042186,-796.533936,0.0002,2]
[324941322,1714455042196,-796.533936,0.0002,2]
[324941323,1714455042205,-796.533936,0.0002,2]
[324941324,1714455042215,-541.94363566,0.0002,2]
[324941325,1714455042239,-254.59030034,0.0002,2]
[324941327,1714455042249,-796.533936,0.0002,2]
[324941329,1714455042258,-796.533936,0.0002,2]
[324941330,1714455042268,-796.533936,0.0002,2]
[324941331,1714455042277,-796.533936,0.0002,2]
[324941332,1714455042287,-796.533936,0.0002,2]
[324941333,1714455042298,-796.533936,0.0002,2]
[324941334,1714455042309,-796.533936,0.0002,2]
[324941335,1714455042318,-796.533932,0.0002,2]
[324941336,1714455042328,-185.889849,0.0002,2]
[324941337,1714455042337,-185.889849,0.0002,2]
[324941338,1714455042348,-185.889849,0.0002,2]
[324941339,1714455042357,-185.889849,0.0002,2]
[324941340,1714455042367,-185.889849,0.0002,2]
[324941341,1714455042381,-185.889849,0.0002,2]
[324941342,1714455042390,-185.889849,0.0002,2]
[324941343,1714455042400,-185.889849,0.0002,2]
[324941344,1714455042409,-185.889849,0.0002,2]
[324941345,1714455042419,-185.889849,0.0002,2]
[324941346,1714455042428,-185.889849,0.0002,2]
[324941347,1714455042439,-185.889843,0.0002,2]
[324941349,1714455042448,-151.0,0.0002,2]
[324941351,1714455042458,-151.0,0.0002,2]
[324941353,1714455042467,-151.0,0.0002,2]
[324941354,1714455042477,-158.199207,0.0002,2]
[324941355,1714455042487,-1213.823465,0.0002,2]
[324941356,1714455042497,-1213.823465,0.0002,2]
[324941357,1714455042507,-1213.823465,0.0002,2]
[324941358,1714455042517,-1213.823465,0.0002,2]
[324941359,1714455042527,-1213.823465,0.0002,2]
[324941360,1714455042537,-151.0,0.0002,2]
[324941361,1714455042549,-151.0,0.0002,2]
[324941362,1714455042559,-151.0,0.0002,2]
[324941363,1714455042572,-1213.823465,0.0002,2]
[324941364,1714455042582,-151.0,0.0002,2]
[324941365,1714455042592,-151.0,0.0002,2]
[324941366,1714455042602,-151.0,0.0002,2]
[324941367,1714455042613,-1213.823465,0.0002,2]
[324941368,1714455042623,-1213.823465,0.0002,2]
[324941369,1714455042633,-1213.823465,0.0002,2]
[324941370,1714455042643,-1213.823465,0.0002,2]
[324941375,1714455042788,-1213.823465,0.0002,2]
[324941376,1714455042800,-1213.823457,0.0002,2]
[324941377,1714455042809,-151.0,0.0002,2]
[324941378,1714455042819,-151.0,0.0002,2]
[324941379,1714455042828,-151.0,0.0002,2]
[324941380,1714455042838,-151.0,0.0002,2]
[324941381,1714455042848,-151.0,0.0002,2]
[324941382,1714455042858,-151.0,0.0002,2]
[324941383,1714455042868,-151.0,0.0002,2]
[324941384,1714455042878,-151.0,0.0002,2]
[324941385,1714455042888,-151.0,0.0002,2]
[324941386,1714455042898,-151.0,0.0002,2]
[324941387,1714455042908,-23586.92471409,0.0002,2]
[324941388,1714455042918,-151.0,0.0002,2]
[324941389,1714455042930,-151.0,0.0002,2]
[324941390,1714455042941,-1074.269972,0.0002,2]
[324941391,1714455042951,-151.0,0.0002,2]
[324941392,1714455042961,-151.0,0.0002,2]
[324941393,1714455042972,-151.0,0.0002,2]
[324941394,1714455042983,-1074.269972,0.0002,2]
[324941395,1714455042993,-1074.269972,0.0002,2]
[324941396,1714455043003,-1074.269972,0.0002,2]
[324941397,1714455043013,-1074.269972,0.0002,2]
[324941398,1714455043023,-1074.269972,0.0002,2]
[324941399,1714455043033,-1074.269972,0.0002,2]
[324941400,1714455043043,-1074.269972,0.0002,2]
[324941401,1714455043059,-1074.269972,0.0002,2]
[324941402,1714455043069,-1074.269981,0.0002,2]
[324941403,1714455043079,-154.83021427,0.0002,2]
[324941404,1714455043091,-80000.0,0.0002,2]
[324941405,1714455043101,-190.286616,0.0002,2]
[324941406,1714455043111,-190.286616,0.0002,2]
[324941407,1714455043121,-190.286616,0.0002,2]
[324941408,1714455043130,-190.286616,0.0002,2]
[324941409,1714455043140,-190.286616,0.0002,2]
[324941410,1714455043149,-190.286616,0.0002,2]
[324941411,1714455043159,-190.286616,0.0002,2]
[324941412,1714455043168,-190.286616,0.0002,2]
[324941413,1714455043177,-190.286616,0.0002,2]
[324941414,1714455043187,-190.286607,0.0002,2]
[324941415,1714455043196,-1092.078576,0.0002,2]
[324941416,1714455043206,-1092.078576,0.0002,2]
[324941417,1714455043215,-1092.078576,0.0002,2]
[324941418,1714455043224,-1092.078576,0.0002,2]
[324941419,1714455043234,-277.83972408,0.0002,2]
[324941420,1714455043243,-1092.078576,0.0002,2]
[324941421,1714455043252,-321.919457,0.0002,2]
[324941422,1714455043261,-1092.078576,0.0002,2]
[324941423,1714455043271,-1092.078576,0.0002,2]
[324941424,1714455043280,-1092.078576,0.0002,2]
[324941425,1714455043289,-1092.078576,0.0002,2]
[324941426,1714455043301,-1092.078577,0.0002,2]
[324941427,1714455043310,-368.215691,0.0002,2]
[324941428,1714455043320,-368.215691,0.0002,2]
[324941429,1714455043330,-368.215691,0.0002,2]
[324941430,1714455043339,-368.215691,0.0002,2]
[324941431,1714455043348,-368.215691,0.0002,2]
[324941432,1714455043358,-368.215691,0.0002,2]
[324941433,1714455043367,-368.215691,0.0002,2]
[324941434,1714455043375,-368.215694,0.0002,2]
[324941435,1714455043385,-375.047859,0.0002,2]
[324941436,1714455043394,-375.047859,0.0002,2]
[324941437,1714455043403,-375.047859,0.0002,2]
[324941438,1714455043412,-375.047859,0.0002,2]
[324941439,1714455043422,-375.047859,0.0002,2]
[324941440,1714455043431,-375.047859,0.0002,2]
[324941441,1714455043440,-375.047859,0.0002,2]
[324941442,1714455043450,-375.047867,0.0002,2]
[324941443,1714455043460,-200.0,0.0002,2]
[324941444,1714455043470,-3886.673384,0.0002,2]
[324941445,1714455043480,-3886.673384,0.0002,2]
[324941446,1714455043489,-3886.673384,0.0002,2]
[324941447,1714455043499,-3886.673384,0.0002,2]
[324941448,1714455043508,-3886.673384,0.0002,2]
[324941449,1714455043518,-3886.673384,0.0002,2]
[324941450,1714455043528,-3886.673384,0.0002,2]
[324941451,1714455043538,-3886.673381,0.0002,2]
[324941452,1714455043550,-160.0,0.0002,2]
[324941453,1714455043565,-3502.198289,0.0002,2]
[324941454,1714455043576,-3502.198289,0.0002,2]
[324941455,1714455043586,-3502.198289,0.0002,2]
[324941456,1714455043596,-3502.198297,0.0002,2]
[324941457,1714455043607,-219.071959,0.0002,2]
[324941458,1714455043617,-219.071959,0.0002,2]
[324941459,1714455043628,-219.071959,0.0002,2]
[324941460,1714455043638,-219.071963,0.0002,2]
[324941461,1714455043648,-4762.44,0.0002036,3]
[324941462,1714455043657,-3000.0,0.00020547,2]
[324941463,1714455043667,-3000.0,0.00020547,2]
[324941464,1714455043677,-3000.0,0.00020547,2]
[324941465,1714455043687,-3000.0,0.00020547,2]
[324941466,1714455043696,-3000.0,0.00020547,2]
[324941467,1714455043706,-2684.07607813,0.00020547,2]
[324941468,1714455043716,-320.0,0.00020548,2]
[324941469,1714455043726,-201.319096,0.00020775,2]
[324941470,1714455043736,-201.319096,0.00020775,2]
[324941471,1714455043746,-3693.55667999,0.00020793,2]
[324941472,1714455043758,-151.0,0.00020908,2]
[324941473,1714455043767,-151.0,0.00020908,2]
[324941474,1714455043777,-151.0,0.00020908,2]
[324941475,1714455043786,-288.852604,0.00020908,2]
[324941476,1714455043796,-288.852604,0.00020908,2]
[324941477,1714455043805,-300.325515,0.00020908,2]
[324941478,1714455043814,-300.325515,0.00020908,2]
[324941479,1714455043824,-151.0,0.00020908,2]
[324941480,1714455043835,-201.319096,0.00020912,2]
[324941481,1714455043844,-201.319096,0.00020912,2]
[324941482,1714455043853,-151.0,0.00020912,2]
[324941483,1714455043863,-156.005589,0.00020912,2]
[324941484,1714455043871,-288.852604,0.00020912,2]
[324941485,1714455043881,-288.852604,0.00020912,2]
[324941486,1714455043890,-300.325515,0.00020912,2]
[324941487,1714455043899,-300.325515,0.00020912,2]
[324941488,1714455043908,-480.0,0.00021096,2]
[324941489,1714455043917,-823.0,0.00021255,2]
[324941490,1714455043927,-788.29704128,0.00021644,2]
[324941491,1714455043936,-10000.0,0.00021918,2]
[324941492,1714455043945,-613.2773995,0.00021918,2]
[324941493,1714455043954,-2857.46,0.00021918,2]
[324941494,1714455043964,-1190.61,0.00021918,2]
[324941495,1714455043973,-992.17,0.00021918,2]
[324941496,1714455043982,-826.81,0.00021918,2]
[324941497,1714455043991,-689.01,0.00021918,2]
[324941498,1714455044001,-574.17,0.00021918,2]
[324941499,1714455044011,-478.48,0.00021918,2]
[324941500,1714455044020,-398.73,0.00021918,2]
[324941501,1714455044030,-332.28,0.00021918,2]
[324941502,1714455044040,-276.9,0.00021918,2]
[324941503,1714455044051,-230.75,0.00021918,2]
[324941504,1714455044061,-300.325515,0.00021918,2]
[324941505,1714455044070,-300.325515,0.00021918,2]
[324941506,1714455044079,-159.21978257,0.00022,2]
[324941507,1714455044089,-154.78330338,0.00022,2]
[324941508,1714455044098,-413.0,0.00022,2]
[324941509,1714455044108,-170.70516231,0.00022,2]
[324941510,1714455044117,-197.21049635,0.00022,2]
[324941511,1714455044126,-197.21049635,0.00022,2]
[324941512,1714455044136,-197.21049635,0.00022,2]
[324941513,1714455044145,-197.21049635,0.00022,2]
[324941514,1714455044155,-197.21049635,0.00022,2]
[324941515,1714455044164,-197.21049635,0.00022,2]
[324941516,1714455044173,-197.21049635,0.00022,2]
[324941517,1714455044183,-413.0,0.00022192,2]
[324941518,1714455044192,-3693.55667999,0.00022399,2]
[324941519,1714455044201,-163.235402,0.00022466,2]
[324941520,1714455044210,-157.742788,0.00022466,2]
[324941521,1714455044219,-257.583705,0.00022466,2]
[324941522,1714455044228,-181.377215,0.00022466,2]
[324941523,1714455044238,-150.53295523,0.00022499,2]
[324941524,1714455044247,-717.62104087,0.00023,2]
[324941525,1714455044257,-413.0,0.00023014,2]
[324941526,1714455044267,-1152.0,0.0002338,2]
[324941527,1714455044276,-1193.88185444,0.00023408,2]
[324941528,1714455044285,-150.0,0.00023499,2]
[324941529,1714455044295,-152.579304,0.000239,2]
[324941530,1714455044305,-300.325515,0.000239,2]
[324941531,1714455044315,-300.325508,0.000239,2]
[324941532,1714455044324,-3853.82848655,0.000239,2]
[324941533,1714455044333,-693.18891974,0.00024,2]
[324941534,1714455044343,-415.0,0.00024164,2]
[324941535,1714455044352,-150.0,0.00024499,2]
[324941536,1714455044361,-201.319096,0.00024537,2]
[324941537,1714455044371,-201.319096,0.00024537,2]
[324941538,1714455044381,-648.69409272,0.00024578,2]
[324941539,1714455044390,-165.13262415,0.00024578,2]
[324941540,1714455044400,-500.0,0.00024657,2]
[324941541,1714455044409,-500.0,0.00024657,2]
[324941542,1714455044419,-200.0,0.00024658,2]
[324941543,1714455044428,-354.188323,0.00024658,2]
[324941544,1714455044437,-354.188323,0.00024658,2]
[324941545,1714455044446,-354.188323,0.00024658,2]
[324941546,1714455044456,-354.188323,0.00024658,2]
[324941547,1714455044465,-354.188323,0.00024658,2]
[324941548,1714455044475,-354.188323,0.00024658,2]